[Event "4NCL 2022-2023"]
[Site "Daventry"]
[Date "2023.02.11"]
[Round "5.39"]
[White "Serbanescu, Diana-Maria"]
[Black "Stewart, Ashley"]
[Result "1/2-1/2"]
[ECO "B06"]
[WhiteElo "1978"]
[BlackElo "2051"]
[Annotator "TA"]
[PlyCount "56"]
[EventDate "2022.10.20"]
[EventType "team-tourn"]
[EventCountry "ENG"]
[SourceTitle "playchess.com"]
[Source "ChessBase"]
[SourceQuality "1"]
[TimeControl "40/6000+30:2400+30"]

{[%evp 11,56,50,25,21,17,23,23,0,23,18,16,0,45,20,12,8,53,42,44,37,161,10,54,28,35,45,75,0,0,0,47,33,30,31,55,6,27,8,44,16,68,0,22,0,85,0,20]} 1. e4 {[%emt 0:00:02]} c5 {[%emt 0:08:24]} 2. c3 {[%emt 0:00:13]} d5 {[%emt 0:00:09]} 3. exd5 {[%emt 0:00:39]} Qxd5 {[%emt 0:00:05]} 4. d4 {[%emt 0:00:28]} g6 {[%emt 0:00:03]} 5. Nf3 {[%emt 0:05:56]} Bg7 {[%emt 0:00:15]} 6. Na3 {[%emt 0:05:42]} cxd4 {[%emt 0:00:09]} 7. Bc4 {[%emt 0:03:35] B06: Modern Defence.} Qe4+ {[%emt 0:00:44] [#]} 8. Be3 $1 {[%emt 0:01:22][%cal Oc4f7] Bxf7+! would be deadly.} Nh6 {[%emt 0:00:13][%cal Bg8h6,Bh6f5,Bf5e3][%mdl 32]} (8... dxe3 $2 9. Bxf7+ Kxf7 10. Ng5+ Ke8 11. Nxe4 $18) 9. cxd4 {[%emt 0:05:49] White has an edge.} ({Much worse is} 9. Nxd4 Qxg2 10. Qf3 Qxf3 11. Nxf3 O-O $17) 9... O-O {[%emt 0:00:43]} 10. O-O {[%emt 0:16:44] Black should prevent Re1.} Nf5 {[%emt 0:02:11]} 11. Re1 {[%emt 0:06:22] 11.Qb3 is not played anymore.} (11. Qb3 {with more complications.} Qg4 12. Ne5 Bxe5 13. dxe5 Nc6 14. f3) 11... Qg4 {[%emt 0:09:53]} 12. h3 {[%emt 0:17:25]} Nxe3 {[%emt 0:01:06]} 13. Rxe3 {[%emt 0:00:10]} ({Reject} 13. hxg4 Nxd1 14. Raxd1 Bxg4 $15) 13... Qd7 {[%emt 0:01:30] [#]} 14. Qe2 $146 {[%emt 0:08:46]} ({Predecessor:} 14. Ne5 Qd8 15. Qf3 e6 16. Rd1 Qf6 17. Qe4 Nd7 18. Rf3 Qe7 19. Nb5 a6 20. Nc3 {½-½ Varela la Madrid,T (2079)-Alinasab,M (2364) Olympiad Women-44 2022 (9.1)}) 14... Bf6 {[%emt 0:04:54]} 15. Rd1 {[%emt 0:01:55]} Nc6 {[%emt 0:04:19] [#]} (15... Qd8 $14) 16. Bb5 $2 {[%emt 0:05:13]} (16. d5 $1 $18 {[%cal Rd5c6]}) 16... Qd6 {[%emt 0:12:53]} 17. Nc4 {[%emt 0:05:00]} Qd5 {[%emt 0:11:42]} 18. Nce5 {[%emt 0:01:53]} Qd6 {[%emt 0:04:32]} 19. Nc4 {[%emt 0:02:20] A dynamic duo of knights.} (19. Bxc6 $16 {Black must now prevent Be4.} bxc6 20. Rc3) 19... Qd5 $11 {[%emt 0:00:18]} 20. Nce5 {[%emt 0:00:38]} a6 {[%emt 0:07:33]} (20... Qd6 $11) 21. Nxc6 {[%emt 0:01:32]} bxc6 {[%emt 0:03:12]} 22. Bc4 $36 {[%emt 0:00:08][%mdl 2048] White has some pressure.} Qd6 {[%emt 0:01:05]} 23. b3 {[%emt 0:04:45]} (23. Ne5 $14 {deserves consideration.}) 23... a5 {[%emt 0:01:44]} 24. Ne5 {[%emt 0:01:58]} Ra7 {[%emt 0:09:42]} 25. Qf3 {[%emt 0:01:55]} Bb7 {[%emt 0:03:15]} ({Better is} 25... c5 $11) 26. Qe2 {[%emt 0:00:33] White is much more active. The black rooks are badly placed.} (26. Ree1 $14) 26... Bc8 {[%emt 0:03:01]} 27. Qf3 {[%emt 0:00:15]} (27. a4 $11) 27... Bb7 $16 {[%emt 0:03:01]} 28. Qe2 {[%emt 0:03:11]} ({White should play} 28. Ree1 $16) 28... Bc8 {[%emt 0:04:02] Weighted Error Value: White=0.30/Black=0.23 (precise)} 1/2-1/2

[Event "4NCL 2022-2023"]
[Site "Daventry"]
[Date "2023.02.11"]
[Round "5.40"]
[White "Sivanandan, Bodhana"]
[Black "Pedersen, Carsten"]
[Result "0-1"]
[ECO "C02"]
[WhiteElo "1725"]
[BlackElo "2088"]
[Annotator "TA"]
[PlyCount "110"]
[EventDate "2022.10.20"]
[EventType "team-tourn"]
[EventCountry "ENG"]
[SourceTitle "playchess.com"]
[Source "ChessBase"]
[SourceQuality "1"]
[TimeControl "40/6000+30:2400+30"]

{[%evp 10,109,13,0,0,-57,0,-48,14,-56,26,33,41,35,49,16,8,-56,-63,-50,-64,-67,-50,-58,-46,-75,-62,-85,-85,-77,-80,-108,-96,-116,-68,-70,-49,-79,-62,-67,-47,-184,-172,-250,-246,-267,-261,-277,-272,-237,-221,-238,-235,-361,-357,-353,-331,-328,-322,-533,-525,-525,-497,-911,-911,-815,-761,-1757,-1664,-859,-858,-2568,-1681,-29974,-29975,-29975,-29976,-29979,-29979,-29976,-29976,-29977,-29977,-29986,-29987,-29987,-29988,-29988,-29988,-29988,-29989,-29989,-29990,-29990,-29991,-29991,-29992,-29992,-29993,-29998,-29999,-29999]} 1. e4 {[%emt 0:00:04]} e6 {[%emt 0:00:04]} 2. d4 {[%emt 0:00:18]} d5 {[%emt 0:00:04]} 3. e5 {[%emt 0:00:16]} c5 {[%emt 0:00:06]} 4. c3 {[%emt 0:00:25]} Nc6 {[%emt 0:00:05]} 5. Nf3 {[%emt 0:00:22]} Bd7 {[%emt 0:00:27]} 6. Bd3 {[%emt 0:01:15]} cxd4 {[%emt 0:00:52] C02: French: Advance Variation.} 7. O-O {[%emt 0:02:59]} (7. cxd4 $11 Qb6 8. Bc2) 7... Nge7 {[%emt 0:02:14]} (7... dxc3 $15 8. Nxc3 Nge7) 8. Re1 {[%emt 0:02:44]} (8. cxd4 $11 {should be considered.} Qb6 9. Kh1) 8... Rc8 {[%emt 0:11:17]} (8... dxc3 $15 9. Nxc3 Ng6) 9. a3 {[%emt 0:08:51] [#]} (9. Nxd4 $11 Nxd4 10. cxd4) 9... a6 $146 {[%emt 0:05:45]} (9... dxc3 $15 10. Nxc3 a6) ({Predecessor:} 9... Ng6 10. g3 dxc3 11. Nxc3 Qc7 12. Qe2 Bc5 13. b4 Nd4 14. Nxd4 Bxd4 15. Nb5 Bxb5 16. Bxb5+ {1-0 Moeller,M (1936)-Stichter,C (1620) GER-chT Lands U20 2022 (4.1)}) 10. cxd4 $11 {[%emt 0:05:22]} Qb6 {[%emt 0:01:55]} 11. Bc2 {[%emt 0:05:22]} Na5 {[%emt 0:04:23]} 12. b4 {[%emt 0:06:58]} Nc4 {[%emt 0:24:45]} 13. Ba4 {[%emt 0:03:07]} (13. Nc3 $11) 13... Bxa4 $15 {[%emt 0:00:16]} 14. Qxa4+ {[%emt 0:00:20]} Qc6 {[%emt 0:07:50]} 15. Qxc6+ {[%emt 0:04:45]} Rxc6 {[%emt 0:01:14]} 16. Nbd2 {[%emt 0:03:34]} Nc8 {[%emt 0:15:00]} 17. Nb3 {[%emt 0:10:31]} b6 {[%emt 0:00:35]} 18. Bg5 {[%emt 0:06:41]} h6 {[%emt 0:00:33]} 19. Be3 {[%emt 0:01:41]} Na7 {[%emt 0:03:16]} 20. Rec1 {[%emt 0:07:13]} Kd7 {[%emt 0:01:52]} 21. Nfd2 {[%emt 0:01:39]} Nxd2 {[%emt 0:05:11]} ({Black should play} 21... Be7 $17 22. Nxc4 Rxc4) 22. Bxd2 {[%emt 0:01:09]} Be7 {[%emt 0:06:00]} 23. Kf1 {[%emt 0:03:53]} Rhc8 {[%emt 0:00:53]} 24. Ke2 {[%emt 0:01:31]} Rxc1 {[%emt 0:03:34]} (24... Rc4 {looks sharper.} 25. Kd3 f6 26. g3 Nc6) 25. Rxc1 {[%emt 0:00:17] Now White is beyond hope.} (25. Nxc1 $15 f6 26. Nb3) 25... Rxc1 $19 {[%emt 0:00:55]} 26. Bxc1 $15 {[%emt 0:00:17][%mdl 4096] Endgame [#] KBN-KBN} (26. Nxc1 $142 Nb5 27. a4 Nxd4+ 28. Kd1) 26... Kc6 $1 $19 {[%emt 0:00:17]} 27. Kd3 {[%emt 0:02:31]} Kb5 {[%emt 0:02:57]} 28. Na1 {[%emt 0:04:53] [#]} Ka4 $1 {[%emt 0:01:04]} 29. Nc2 {[%emt 0:00:14]} Nb5 {[%emt 0:01:24]} 30. f4 {[%emt 0:03:36]} h5 {[%emt 0:01:13]} 31. g3 {[%emt 0:00:19]} (31. f5 {was worth a try.}) 31... g6 {[%emt 0:00:12]} 32. h3 {[%emt 0:00:11]} a5 {[%emt 0:00:36]} 33. Bd2 {[%emt 0:00:14]} axb4 {[%emt 0:04:36]} 34. Nxb4 {[%emt 0:02:50]} (34. axb4 Na7 35. b5) 34... Bxb4 {[%emt 0:00:21]} ({Less strong is} 34... Nxa3 35. Nc6 Bf8 36. Nd8 $16) 35. axb4 {[%emt 0:00:08] KB-KN} Kb3 {[%emt 0:00:10] ...Na3 would be deadly.} 36. g4 {[%emt 0:00:48]} (36. f5 $142 gxf5 37. Bg5) 36... hxg4 {[%emt 0:01:21]} 37. hxg4 {[%emt 0:00:09]} Na3 {[%emt 0:00:52]} 38. f5 {[%emt 0:05:28]} gxf5 {[%emt 0:00:34]} 39. gxf5 {[%emt 0:00:43]} b5 {[%emt 0:02:17]} 40. Bg5 {[%emt 0:03:21]} Nc2 {[%emt 0:00:30]} 41. fxe6 {[%emt 0:40:37]} fxe6 {[%emt 0:40:02] Black mates.} 42. Be7 {[%emt 0:00:57]} Nxb4+ {[%emt 0:00:49]} 43. Ke3 {[%emt 0:01:08]} Nc6 {[%emt 0:00:49]} 44. Bc5 {[%emt 0:00:21]} Kc4 {[%emt 0:00:36]} 45. Kd2 {[%emt 0:02:07] [#]} Nxe5 $1 {[%emt 0:00:19][%mdl 576] Deflection} 46. dxe5 {[%emt 0:00:08]} (46. Bf8 Nf3+) 46... Kxc5 {[%emt 0:00:06] KP-KP} 47. Kc3 {[%emt 0:00:22]} d4+ {[%emt 0:00:16]} 48. Kb3 {[%emt 0:00:08]} Kd5 {[%emt 0:00:16]} 49. Kc2 {[%emt 0:00:48]} b4 {[%emt 0:00:30][%cal Bb5b4,Bb4b3][%mdl 32]} 50. Kb3 {[%emt 0:00:06]} d3 {[%emt 0:00:06]} 51. Kb2 {[%emt 0:00:07]} Kc4 {[%emt 0:00:05]} 52. Kb1 {[%emt 0:00:12]} Kc3 {[%emt 0:00:08]} 53. Kc1 {[%emt 0:00:14]} b3 {[%emt 0:00:05]} 54. Kb1 {[%emt 0:00:11]} d2 {[%emt 0:00:06][%cal Rd2d1]} 55. Ka1 {[%emt 0:00:06]} d1=Q# {[%emt 0:00:04] Weighted Error Value: White=0.57/Black=0.11 (very precise)} 0-1

[Event "4NCL 2022-2023"]
[Site "Daventry"]
[Date "2023.02.11"]
[Round "5.41"]
[White "Speelman, Jon S"]
[Black "Delaney, Killian"]
[Result "1-0"]
[ECO "A30"]
[WhiteElo "2500"]
[BlackElo "2300"]
[Annotator "TA"]
[PlyCount "43"]
[EventDate "2022.10.20"]
[EventType "team-tourn"]
[EventCountry "ENG"]
[SourceTitle "playchess.com"]
[Source "ChessBase"]
[SourceQuality "1"]
[TimeControl "40/6000+30:2400+30"]

{[%evp 9,43,2,32,28,39,21,24,32,34,29,129,100,97,85,87,95,98,98,148,145,153,151,181,181,182,191,199,186,183,186,177,183,181,184,283,283]} 1. Nf3 {[%emt 0:00:08]} c5 {[%emt 0:00:14]} 2. c4 {[%emt 0:00:22]} e6 {[%emt 0:00:24]} 3. g3 {[%emt 0:01:26]} d5 {[%emt 0:00:21]} 4. Bg2 {[%emt 0:01:07]} Nc6 {[%emt 0:01:10]} 5. O-O {[%emt 0:03:30]} dxc4 {[%emt 0:03:57]} 6. Na3 {[%emt 0:00:21] A30: Symmetrical English: Double Fianchetto and Hedgehog.} Be7 {[%emt 0:01:59]} 7. Nxc4 {[%emt 0:00:17]} Nf6 {[%emt 0:00:31]} 8. b3 {[%emt 0:00:55] White has an edge.} Nd5 {[%emt 0:03:54]} 9. Bb2 {[%emt 0:01:37]} Bf6 {[%emt 0:00:43]} (9... O-O $1 $11 {keeps the balance.}) 10. Bxf6 {[%emt 0:05:32] [#]} Nxf6 $146 {[%emt 0:00:27]} ({Predecessor:} 10... gxf6 11. Rc1 Nde7 12. e3 O-O 13. d4 cxd4 14. Nxd4 Nxd4 15. exd4 Rb8 16. Qg4+ Ng6 {0-1 Berg,K (2375)-Van der Wiel,J (2530) OHRA GM Open 1983}) 11. Rc1 $36 {[%emt 0:00:06][%mdl 2048] White has strong initiative.} O-O {[%emt 0:00:17]} 12. Nce5 {[%emt 0:01:05]} Nxe5 {[%emt 0:00:10]} 13. Nxe5 {[%emt 0:00:04]} Qa5 {[%emt 0:00:40]} (13... Qd6 $142) 14. Qc2 $16 {[%emt 0:01:00]} Nd5 {[%emt 0:02:28]} 15. Rfd1 {[%emt 0:05:31] White is much more active. The black rooks are badly placed.} (15. Qxc5 Qxa2 16. e4 Nf6 $16) 15... b6 {[%emt 0:12:13]} 16. Nc6 {[%emt 0:01:06]} Qb5 {[%emt 0:00:34] [#]} 17. Ne7+ {[%emt 0:00:04][%mdl 576] Pin, Double Attack} Kh8 {[%emt 0:00:19]} (17... Nxe7 18. Bxa8) 18. Nxd5 {[%emt 0:00:22]} (18. Bxd5 exd5 19. d4 (19. Nxd5 Qxe2 20. d4 {[%mdl 64] Discovered Attack} Qxc2 $11) 19... Qd7 $14) 18... exd5 {[%emt 0:00:07]} 19. Bxd5 {[%emt 0:00:11]} Rb8 {[%emt 0:00:11]} 20. d4 {[%emt 0:02:25]} cxd4 {[%emt 0:01:36]} 21. Rxd4 {[%emt 0:00:08]} Qd7 {[%emt 0:02:59]} (21... Qe8 {was worth a try.} 22. e3 (22. Rh4 h6 $16) 22... Bb7) 22. Qc7 {[%emt 0:01:48] Weighted Error Value: White=0.04 (flawless) /Black=0.25 (precise)} ({Don't do} 22. Rh4 f5 $18) 1-0

[Event "4NCL 2022-2023"]
[Site "Daventry"]
[Date "2023.02.11"]
[Round "5.42"]
[White "Wall, Gavin"]
[Black "Wadsworth, Matthew J"]
[Result "1-0"]
[ECO "D11"]
[WhiteElo "2290"]
[BlackElo "2469"]
[Annotator "TA"]
[PlyCount "81"]
[EventDate "2022.10.20"]
[EventType "team-tourn"]
[EventCountry "ENG"]
[SourceTitle "playchess.com"]
[Source "ChessBase"]
[SourceQuality "1"]
[TimeControl "40/6000+30:2400+30"]

{[%evp 18,81,0,0,0,0,0,-5,-10,-86,0,0,0,0,0,-4,0,0,0,0,11,3,66,11,66,47,49,55,42,0,20,15,36,27,36,34,176,177,173,172,319,314,312,295,314,314,480,440,578,570,618,613,606,583,706,702,696,689,712,698,921,921,921,921,906,879]} 1. d4 {[%emt 0:00:04]} d5 {[%emt 0:00:19]} 2. Nf3 {[%emt 0:00:17]} Nf6 {[%emt 0:00:32]} 3. g3 {[%emt 0:01:38]} Bf5 {[%emt 0:00:59]} 4. Bg2 {[%emt 0:00:08]} e6 {[%emt 0:02:19]} 5. O-O {[%emt 0:00:24]} h6 {[%emt 0:01:31]} 6. c4 {[%emt 0:01:00]} c6 {[%emt 0:03:24]} 7. Nc3 {[%emt 0:00:41]} Nbd7 {[%emt 0:05:49]} 8. Nd2 {[%emt 0:01:59]} Be7 {[%emt 0:05:11]} 9. e4 {[%emt 0:02:15]} dxe4 {[%emt 0:00:37]} 10. Ndxe4 {[%emt 0:00:06]} Nxe4 {[%emt 0:01:24] D11: Slav Defence: 3 Nf3 sidelines and 3...Nf6 4 e3 Bg4.} 11. Nxe4 {[%emt 0:00:06]} O-O {[%emt 0:00:56]} 12. Bf4 {[%emt 0:02:58]} Nf6 {[%emt 0:06:26] The position is equal.} 13. Nc5 {[%emt 0:04:08]} (13. Re1 $11 {remains equal.}) 13... b6 {[%emt 0:11:27] [#]} ({Black should try} 13... Bxc5 $17 14. dxc5 Bd3) 14. Nb3 $146 {[%emt 0:08:49]} ({Predecessor:} 14. Nd3 Qxd4 15. Ne5 Qxb2 16. Nxc6 Bc5 17. Be5 Qc2 18. Bxf6 Qxd1 19. Rfxd1 gxf6 20. Rd7 {0-1 Sirin,A (2240)-Bilic,V (2292) EU-Cup 26th Plovdiv 2010 (5.4)}) 14... Rc8 {[%emt 0:05:23]} 15. Qe2 {[%emt 0:01:46]} Qd7 {[%emt 0:03:52]} 16. a4 {[%emt 0:10:34]} Rfd8 {[%emt 0:04:41]} 17. h3 {[%emt 0:07:47]} a5 {[%emt 0:12:18]} 18. Rfd1 {[%emt 0:00:32]} Qa7 {[%emt 0:02:45]} 19. Rac1 {[%emt 0:03:59]} Bd6 {[%emt 0:06:03]} (19... Bb4 $11) 20. Be5 {[%emt 0:05:35]} ({Better is} 20. Bxd6 $14 Rxd6 21. c5 bxc5 22. Qe5 (22. dxc5 Rxd1+ 23. Qxd1 Be4 $11) (22. Nxc5 Rcd8 $11) (22. Rxc5 Qb6 $14)) 20... Bg6 {[%emt 0:07:31]} (20... Be7 $11) 21. Bxf6 {[%emt 0:02:45]} gxf6 {[%emt 0:00:02]} 22. c5 {[%emt 0:00:09]} Bf8 {[%emt 0:01:31]} 23. Qe3 {[%emt 0:11:45]} Qb8 {[%emt 0:04:31]} 24. Qc3 {[%emt 0:02:15]} h5 {[%emt 0:00:32]} 25. h4 {[%emt 0:03:59]} (25. cxb6 $5 {[%cal Rc3a5]} Bb4 26. Qf3 $14) 25... Bh6 {[%emt 0:06:35]} 26. Ra1 {[%emt 0:00:21] [#] aiming for cxb6.} f5 {[%emt 0:01:34] Loses the game.} (26... Bf8 $1 $14) 27. cxb6 $18 {[%emt 0:02:29]} Qxb6 {[%emt 0:03:24]} 28. Nxa5 {[%emt 0:02:32]} (28. Qxa5 $2 Qxb3 29. Qc3 Qb8 $19) 28... f4 {[%emt 0:00:42]} (28... c5 $142) 29. Nxc6 {[%emt 0:01:09] Ne7+ would be deadly.} (29. Bxc6 $2 {is the wrong capture.} fxg3 30. Qxg3 (30. fxg3 $2 Bg7 $19) 30... Qxa5 $19) 29... Kh7 {[%emt 0:01:19]} 30. b4 {[%emt 0:03:36][%cal Bb2b4,Bb4b5][%mdl 32] [#] And now a5 would win.} fxg3 {[%emt 0:00:50]} 31. fxg3 {[%emt 0:00:02]} Rd6 {[%emt 0:06:36]} (31... Rxd4 $142 32. Rxd4 e5 {[%mdl 64] Pin}) 32. b5 {[%emt 0:02:45] White is clearly winning.} e5 {[%emt 0:00:30]} 33. Qc5 {[%emt 0:03:00]} Be3+ {[%emt 0:03:47]} 34. Kh2 {[%emt 0:00:04]} Qxc5 {[%emt 0:00:57]} 35. dxc5 {[%emt 0:00:04]} Rxd1 {[%emt 0:00:05]} 36. Rxd1 {[%emt 0:00:03] b6 is the strong threat.} Bxc5 {[%emt 0:00:27]} 37. Rd5 {[%emt 0:00:56]} Bb6 {[%emt 0:01:13]} 38. a5 {[%emt 0:00:41][%cal Ba4a5,Ba5b6,Bb6b7][%mdl 32]} Bc7 {[%emt 0:00:43]} 39. b6 {[%emt 0:00:45]} (39. Nxe5 Bxa5 40. Rd7 Rb8 $18) 39... Bxb6 {[%emt 0:00:31]} 40. axb6 {[%emt 0:00:06] White threatens b7 and mate.} Rxc6 {[%emt 0:00:05]} 41. b7 {[%emt 0:40:04] Weighted Error Value: White=0.12 (very precise) /Black=0.47} ({Not} 41. Rxe5 Rxb6 42. Bf3 Rb2+ 43. Kg1 Kh6 $11) 1-0